bitfinex/quotes_BTCUSD_20251021
["timestamp","ask_amount","ask_price","bid_price","bid_amount"]
[1761060166913,1e-08,112920.0,112910.0,1.34652719]
[1761060167127,1e-08,112920.0,112910.0,1.35652718]
[1761060169105,1e-08,112920.0,112910.0,1.3365272]
[1761060169373,1e-08,112920.0,112910.0,1.34652719]
[1761060169656,1e-08,112920.0,112910.0,1.3365272]
[1761060169886,1e-08,112920.0,112910.0,1.34652719]
[1761060170398,1e-08,112920.0,112910.0,0.7724535]
[1761060170639,1e-08,112920.0,112910.0,1.34652719]
[1761060171190,1e-08,112920.0,112910.0,1.35652718]
[1761060171598,0.18587382,112980.0,112970.0,0.17703815]
[1761060171860,0.18587382,112980.0,112970.0,0.29480216]
[1761060172001,0.76990433,112990.0,112970.0,0.29480216]
[1761060172226,0.17702248,112980.0,112970.0,0.28480216]
[1761060172431,0.17702248,112980.0,112970.0,0.11776401]
[1761060172635,0.76990433,112990.0,112970.0,0.29480216]
[1761060172833,0.19583064,112990.0,112970.0,0.29480216]
[1761060173028,0.01881695,112990.0,112980.0,0.17702248]
[1761060173329,4.2577393,113000.0,112980.0,0.17702248]
[1761060173520,4.34755831,113000.0,112990.0,0.11728]
[1761060173716,4.34755831,113000.0,112990.0,0.29328681]
[1761060173931,0.17702248,112980.0,112970.0,0.00048401]
[1761060174211,0.17700681,112990.0,112970.0,0.29476209]
[1761060174372,0.19640065,112990.0,112970.0,0.29476209]
[1761060174581,0.19640065,112990.0,112980.0,0.17702248]
[1761060175418,4.07189751,113000.0,112980.0,0.17702248]
[1761060175723,0.17700681,112990.0,112970.0,0.18637399]
[1761060175942,0.17700681,112990.0,112980.0,0.29426248]
[1761060176182,0.17700681,112990.0,112980.0,0.11724]
[1761060176382,0.17700681,112990.0,112980.0,0.29426248]
[1761060176589,0.17702248,112980.0,112970.0,0.00048401]
[1761060176744,0.84091518,112980.0,112970.0,0.11772401]
[1761060177310,0.26684149,112980.0,112970.0,0.11772401]
[1761060177514,0.26882702,112980.0,112970.0,0.11772401]
[1761060178289,0.17900801,112980.0,112970.0,0.29476216]
[1761060178730,0.7530817,112980.0,112970.0,0.00048401]
[1761060178961,0.7530817,112980.0,112970.0,0.11772401]
[1761060179163,0.17900801,112980.0,112970.0,0.11772401]
[1761060179829,0.17900801,112980.0,112970.0,0.29476216]
[1761060179830,0.00198553,112980.0,112970.0,0.29476216]
[1761060180029,0.35304838,113020.0,112980.0,0.34]
[1761060180030,0.27548146,113020.0,112980.0,0.34]
[1761060180193,0.17702045,112990.0,112970.0,0.51752167]
[1761060180392,0.84091315,112990.0,112980.0,0.11724]
[1761060180626,0.84091315,112990.0,112980.0,0.00786162]
[1761060180849,0.95815315,112990.0,112980.0,0.00786162]
[1761060181035,0.96815314,112990.0,112980.0,0.00786162]
[1761060181271,0.08981901,112990.0,112980.0,0.00786162]
[1761060181634,0.26682582,112990.0,112980.0,0.00786162]
[1761060181813,0.84089951,112990.0,112980.0,0.12510162]
[1761060182017,0.26682582,112990.0,112980.0,0.12510162]
[1761060182225,0.08981901,112990.0,112980.0,0.3021241]
[1761060182447,0.87718291,113010.0,112980.0,0.3021241]
[1761060182647,0.08981901,113000.0,112990.0,0.17700681]
[1761060182856,0.2667974,113010.0,112990.0,0.00786162]
[1761060183066,0.2667974,113010.0,113000.0,0.11724]
[1761060183274,0.18701634,113030.0,113000.0,0.30209277]
[1761060183275,0.17701635,113030.0,113000.0,0.30209277]
[1761060183500,0.00999999,113040.0,113000.0,0.27467716]
[1761060183767,0.26674836,113040.0,113010.0,0.31306424]
[1761060183972,0.08981901,113040.0,113020.0,0.1769582]
[1761060184194,0.1960388,113050.0,113030.0,0.17694417]
[1761060184399,0.28585781,113050.0,113020.0,0.83990482]
[1761060184617,0.28585781,113050.0,113020.0,0.30205818]
[1761060187117,0.00198395,113040.0,113030.0,0.74049667]
[1761060187319,0.00198395,113040.0,113030.0,0.83031568]
[1761060188571,0.00198395,113040.0,113030.0,0.5535666]
[1761060188572,0.17891247,113040.0,113030.0,0.5535666]
[1761060188782,0.26873148,113040.0,113030.0,0.00785998]
[1761060189277,0.09180296,113040.0,113030.0,0.00784106]
[1761060189689,0.17891247,113040.0,113030.0,0.00784106]
[1761060190214,0.00198395,113040.0,113030.0,0.55354768]
[1761060190492,0.29416654,113070.0,113040.0,0.17692852]
[1761060190696,0.26674555,113070.0,113050.0,0.72261852]
[1761060190908,0.17689722,113060.0,113050.0,0.00784106]
[1761060191114,0.17688211,113070.0,113050.0,0.68078767]
[1761060191315,0.17689722,113060.0,113050.0,0.12508106]
[1761060191495,0.17689722,113060.0,113050.0,0.12408106]
[1761060191699,0.28600467,113060.0,113050.0,0.00684106]
[1761060192136,0.17686795,113080.0,113050.0,0.66986768]
[1761060192344,0.17688395,113070.0,113050.0,0.66986768]
[1761060192764,0.29418831,113080.0,113060.0,0.17689658]
[1761060192973,0.17688157,113070.0,113060.0,0.54570662]
[1761060193189,0.17688157,113070.0,113050.0,0.67302661]
[1761060193406,0.17688157,113070.0,113050.0,0.12731999]
[1761060193618,0.17688157,113070.0,113050.0,0.84993823]
[1761060193828,0.19552635,113080.0,113060.0,0.54570662]
[1761060194034,0.19552635,113080.0,113050.0,0.85926788]
[1761060194238,0.19552635,113080.0,113070.0,0.53]
[1761060195083,0.30317908,113090.0,113070.0,0.53]
[1761060195084,0.18577908,113090.0,113070.0,0.82424157]
[1761060195284,0.26667006,113090.0,113070.0,1.36994819]
[1761060195514,0.26667006,113090.0,113070.0,0.64736]
[1761060195716,0.08981901,113090.0,113070.0,0.82423669]
[1761060195953,0.0523124,113100.0,113080.0,0.17686539]
[1761060196154,0.31896731,113100.0,113090.0,0.11736]
[1761060196369,0.31896731,113100.0,113090.0,0.11636]
[1761060196576,0.17685134,113090.0,113080.0,0.11736]
[1761060196778,0.22914756,113100.0,113080.0,0.83993255]
[1761060196982,0.0523124,113100.0,113090.0,0.17685029]
[1761060197189,0.24799852,113100.0,113080.0,0.12735999]
[1761060197388,0.24899852,113100.0,113090.0,0.00048401]
[1761060198025,0.24799852,113100.0,113090.0,0.00048401]
[1761060198229,0.24899852,113100.0,113090.0,0.00048401]
[1761060198550,0.07216299,113100.0,113090.0,0.00048401]
[1761060198964,0.24899764,113100.0,113090.0,0.00048401]
[1761060199175,0.0533124,113100.0,113090.0,0.1773343]
[1761060199508,0.23014705,113100.0,113090.0,0.00048401]
[1761060199737,0.22914705,113100.0,113090.0,0.00048401]
[1761060201044,0.0523124,113100.0,113090.0,0.00048401]
[1761060201374,0.0523124,113100.0,113090.0,0.010484]
[1761060201682,0.31896606,113100.0,113090.0,0.00048401]
[1761060201894,1.32183268,113100.0,113090.0,0.00048401]
[1761060202100,1.36801495,113100.0,113090.0,0.00048401]
[1761060202317,0.82230833,113100.0,113090.0,0.00048401]
[1761060202581,0.78814843,113100.0,113090.0,0.00048401]
[1761060202778,0.82433071,113100.0,113090.0,0.00048401]
[1761060202988,1.37003733,113100.0,113090.0,0.00048401]
[1761060204159,0.2230482,113080.0,113070.0,0.53]
[1761060204401,0.97573383,113080.0,113070.0,0.53048478]
[1761060204603,0.43002721,113080.0,113070.0,0.53048478]
[1761060204844,0.26668494,113080.0,113070.0,0.53048478]
[1761060205275,0.08981901,113080.0,113070.0,0.53048478]
[1761060205611,0.35522883,113100.0,113070.0,0.70736635]
[1761060205965,0.26667206,113090.0,113070.0,0.53048478]
[1761060206447,0.001,113080.0,113070.0,0.53048478]
[1761060206831,0.38387206,113090.0,113070.0,0.53048478]
[1761060207038,0.17686593,113080.0,113070.0,0.53048478]
[1761060207237,0.26668494,113080.0,113070.0,0.53048478]
[1761060208026,0.81239156,113080.0,113070.0,0.53048478]
[1761060208308,0.26668494,113080.0,113070.0,0.53048478]
[1761060208887,0.92951156,113080.0,113070.0,0.53048478]
[1761060209099,1.26951156,113080.0,113070.0,0.53048478]
[1761060209476,0.72380494,113080.0,113070.0,0.00048478]
[1761060209845,0.72512676,113080.0,113070.0,0.00048478]
[1761060210236,0.60800676,113080.0,113070.0,0.00048478]
[1761060210428,0.26800676,113080.0,113070.0,0.00048478]
[1761060210591,0.38712676,113080.0,113070.0,0.00048478]
[1761060212159,0.27000676,113080.0,113070.0,0.00048478]
[1761060212378,0.38712676,113080.0,113070.0,0.00048478]
[1761060213270,0.27000676,113080.0,113070.0,0.00048478]
[1761060213484,0.20826083,113080.0,113070.0,0.00048478]
[1761060213689,0.38512676,113080.0,113070.0,0.00048478]
[1761060213930,0.00332182,113080.0,113070.0,0.00048478]
[1761060214144,0.18018775,113080.0,113070.0,0.00048478]
[1761060214342,0.17918775,113080.0,113070.0,0.00048478]
[1761060214566,0.00132182,113080.0,113070.0,0.00048478]
[1761060214858,0.00332182,113080.0,113070.0,0.00048478]
[1761060215060,0.18018775,113080.0,113070.0,0.00048478]
[1761060215265,0.27000676,113080.0,113070.0,0.00048478]
[1761060216351,0.00332182,113080.0,113070.0,0.31231613]
[1761060216555,0.00332182,113080.0,113070.0,0.99947398]
[1761060216758,0.00332182,113080.0,113070.0,1.08929299]
[1761060216961,0.00232182,113080.0,113070.0,1.08929299]
[1761060217166,0.00132182,113080.0,113070.0,1.08929299]
[1761060218426,0.00132182,113080.0,113070.0,0.01831085]
[1761060218627,0.26800676,113080.0,113070.0,0.00048478]
[1761060218841,0.00132182,113080.0,113070.0,0.00048478]
[1761060219042,0.17818775,113080.0,113070.0,0.00048478]
[1761060219660,0.23801868,113100.0,113080.0,0.49867818]
[1761060219864,0.17685029,113090.0,113080.0,0.61579818]
[1761060220243,0.2666693,113090.0,113080.0,0.49867818]
[1761060221044,0.3837893,113090.0,113080.0,0.49867818]
[1761060223768,1.07094715,113090.0,113080.0,0.49867818]
[1761060224183,0.2666693,113090.0,113080.0,0.49867818]
[1761060224591,0.3837893,113090.0,113080.0,0.49867818]
[1761060225383,0.26699967,113090.0,113080.0,0.49867818]
[1761060225586,0.38411967,113090.0,113080.0,0.49867818]
[1761060226131,0.26699967,113090.0,113080.0,0.49867818]
[1761060226677,0.09014938,113090.0,113080.0,0.49867818]
[1761060226919,0.26699967,113090.0,113080.0,0.49867818]
[1761060227128,0.09014938,113090.0,113080.0,0.49867818]
[1761060227330,0.17709222,113090.0,113080.0,0.49867818]
[1761060227533,0.17209222,113090.0,113080.0,0.49867818]
[1761060227951,0.17685029,113090.0,113080.0,0.49867818]
[1761060228160,0.23801868,113100.0,113080.0,0.67553734]
[1761060228363,0.32783769,113100.0,113080.0,0.6755438]
[1761060228570,0.14213141,113100.0,113080.0,0.6755438]
[1761060228784,0.31896644,113100.0,113080.0,0.67554364]
[1761060228958,0.31896644,113100.0,113090.0,0.11712]
[1761060229569,0.14313141,113100.0,113090.0,0.11712]
[1761060229769,0.31996606,113100.0,113090.0,0.11712]
[1761060230029,0.31896606,113100.0,113090.0,0.11712]
[1761060230154,0.31996606,113100.0,113090.0,0.11712]
[1761060230351,0.31896606,113100.0,113090.0,0.11712]
[1761060232314,0.31896606,113100.0,113080.0,0.50867817]
[1761060232315,0.17685029,113090.0,113080.0,0.50867817]
[1761060232579,0.17685029,113090.0,113080.0,0.61579818]
[1761060232801,0.2666693,113090.0,113080.0,0.49867818]
[1761060234038,0.2676693,113090.0,113080.0,0.49867818]
[1761060234571,0.001,113090.0,113080.0,0.49867818]
[1761060234767,0.17885029,113090.0,113080.0,0.49867818]
[1761060234991,0.2686693,113090.0,113080.0,0.49867818]
[1761060235190,0.17885029,113090.0,113080.0,0.49867818]
[1761060235793,0.002,113090.0,113080.0,0.49867818]
[1761060236213,0.17885029,113090.0,113080.0,0.49867818]
[1761060236457,0.002,113090.0,113080.0,0.50867817]
[1761060236675,0.17885029,113090.0,113080.0,0.49867818]
[1761060237194,0.17785029,113090.0,113080.0,0.49867818]
[1761060237395,0.2666693,113090.0,113080.0,0.49867818]
[1761060237858,0.17685029,113090.0,113080.0,0.49867818]
[1761060238043,0.22948225,113100.0,113080.0,0.67554286]
[1761060238205,0.31929704,113100.0,113080.0,0.68554285]
[1761060238404,0.17685029,113090.0,113080.0,0.50867817]
[1761060238617,0.17685029,113090.0,113080.0,0.62579817]
[1761060239257,0.05264273,113100.0,113080.0,0.80266281]
[1761060239461,0.17685029,113090.0,113080.0,0.62579817]
[1761060239691,0.22948043,113100.0,113080.0,0.62579817]
[1761060239896,0.17685029,113090.0,113080.0,0.62579817]
[1761060240142,0.23047805,113100.0,113080.0,1.48982195]
[1761060240344,0.05264273,113100.0,113090.0,0.17685029]
[1761060240576,0.22947738,113100.0,113080.0,0.8026641]
[1761060241021,0.31929639,113100.0,113080.0,0.61579818]
[1761060241241,0.17685029,113090.0,113080.0,0.61579818]
[1761060241488,0.31929639,113100.0,113080.0,0.79266376]
[1761060241709,0.22947803,113100.0,113080.0,0.80266375]
[1761060241939,0.05264273,113100.0,113090.0,1.36268632]
[1761060242161,0.05264273,113100.0,113090.0,0.68552846]
[1761060242389,0.05264273,113100.0,113090.0,0.50867817]
[1761060242671,0.22947738,113100.0,113090.0,0.49867818]
[1761060242901,1.00645424,113100.0,113090.0,0.49867818]
[1761060243122,1.12357424,113100.0,113090.0,0.49867818]
[1761060243346,0.31929639,113100.0,113090.0,0.49867818]
[1761060243584,0.25958174,113100.0,113090.0,0.49867818]
[1761060243809,0.31929639,113100.0,113090.0,0.49867818]
[1761060244273,0.32029639,113100.0,113090.0,0.49867818]
[1761060244474,1.02654332,113100.0,113090.0,0.49867818]
[1761060244674,0.32029638,113100.0,113090.0,0.49867818]
[1761060245315,1.00745423,113100.0,113090.0,0.49867818]
[1761060245517,1.00645423,113100.0,113090.0,0.49867818]
[1761060245727,1.02554444,113100.0,113090.0,0.49867818]
[1761060245933,0.32029638,113100.0,113090.0,0.49867818]
[1761060246141,0.32129638,113100.0,113090.0,0.49867818]
[1761060246347,0.33938718,113100.0,113090.0,0.49867818]
[1761060246549,1.02654503,113100.0,113090.0,0.49867818]
[1761060246750,1.02754503,113100.0,113090.0,0.49867818]
[1761060246960,1.01644503,113100.0,113090.0,0.49867818]
[1761060247369,0.32928718,113100.0,113090.0,0.49867818]
[1761060248375,0.32928718,113100.0,113090.0,0.548546]
[1761060248697,0.31019638,113100.0,113090.0,0.49867818]
[1761060249370,0.42727638,113100.0,113090.0,0.49867818]
[1761060249784,0.31019638,113100.0,113090.0,0.49867818]
[1761060250148,0.04154272,113100.0,113090.0,0.68552846]
[1761060250359,0.04354272,113100.0,113090.0,0.77534747]
[1761060250599,0.04254272,113100.0,113090.0,0.77534747]
[1761060250803,0.21937737,113100.0,113090.0,0.59849718]
[1761060251023,0.04254272,113100.0,113090.0,0.77534747]
[1761060251728,0.04254272,113100.0,113090.0,0.59849718]
[1761060251943,0.04154272,113100.0,113090.0,0.77534747]
[1761060252489,0.04154272,113100.0,113090.0,1.46250532]
[1761060252711,0.04154272,113100.0,113090.0,0.77534747]
[1761060253908,0.04154272,113100.0,113090.0,1.55232433]
[1761060254170,0.04154272,113100.0,113090.0,0.86516648]
[1761060254419,0.04154272,113100.0,113090.0,1.55232433]
[1761060254861,0.04154272,113100.0,113090.0,1.54232434]
[1761060255075,0.04154272,113100.0,113090.0,1.55232433]
[1761060256451,0.04154272,113100.0,113090.0,0.86616648]
[1761060256654,0.04154272,113100.0,113090.0,1.55332433]
[1761060257814,0.04154272,113100.0,113090.0,0.86616648]
[1761060258026,0.04154272,113100.0,113090.0,1.55332433]
[1761060259645,0.04154272,113100.0,113090.0,1.37647404]
[1761060259812,0.04154272,113100.0,113090.0,0.77634747]
[1761060260156,0.04154272,113100.0,113090.0,1.46350532]
[1761060260362,0.04154272,113100.0,113090.0,0.77634747]
[1761060260751,0.04154272,113100.0,113090.0,0.77534747]
[1761060261471,0.21837737,113100.0,113090.0,0.58849719]
[1761060261667,0.21837737,113100.0,113090.0,0.59849718]
[1761060261893,0.04154272,113100.0,113090.0,0.77534747]
[1761060262310,0.04154272,113100.0,113090.0,1.46250532]
[1761060262641,0.04154272,113100.0,113090.0,0.77534747]
[1761060262830,0.04154272,113100.0,113090.0,0.27666929]
[1761060263657,0.04154272,113100.0,113090.0,0.27766929]
[1761060264567,0.04154272,113100.0,113090.0,0.100819]
[1761060264753,0.04154272,113100.0,113090.0,0.98251216]
[1761060264953,0.04154272,113100.0,113090.0,0.96482714]
[1761060265098,0.04154272,113100.0,113090.0,0.27766929]
[1761060265323,0.04154272,113100.0,113090.0,0.96482714]
[1761060265665,0.04154272,113100.0,113090.0,0.27666929]
[1761060265872,0.04154272,113100.0,113090.0,0.33373074]
[1761060266638,0.04154272,113100.0,113090.0,0.24491173]
[1761060267019,0.04154272,113100.0,113090.0,1.02188859]
[1761060267423,0.04154272,113100.0,113090.0,1.02088859]
[1761060267665,0.05015,113110.0,113100.0,0.18683464]
[1761060267824,0.05015,113110.0,113100.0,0.44054585]
[1761060268023,0.05048027,113110.0,113100.0,1.1277037]
[1761060268471,0.05048027,113110.0,113100.0,1.50388598]
[1761060269117,0.05048027,113110.0,113100.0,1.4677037]
[1761060270105,0.05048027,113110.0,113100.0,0.78054585]
[1761060270336,0.05048027,113110.0,113100.0,1.4677037]
[1761060271186,0.05048027,113110.0,113100.0,1.5677037]
[1761060271387,0.05048027,113110.0,113100.0,1.60388598]
[1761060271584,0.04458568,113130.0,113120.0,0.56298566]
[1761060271808,0.04458568,113130.0,113120.0,2.20118182]
[1761060272764,0.05028652,113140.0,113130.0,1.248628]
[1761060272984,0.05028652,113140.0,113130.0,1.33844701]
[1761060273395,0.01299284,113150.0,113140.0,1.2124301]
[1761060273608,0.01299284,113150.0,113140.0,1.27797277]
[1761060273955,0.01299284,113150.0,113140.0,1.3025148]
[1761060274168,0.01299284,113150.0,113140.0,0.73359114]
[1761060274413,0.01299284,113150.0,113140.0,1.27797277]
[1761060274562,0.01299284,113150.0,113140.0,1.33503422]
[1761060274934,0.01299284,113150.0,113140.0,1.35957625]
[1761060275141,0.01299284,113150.0,113140.0,1.33503422]
[1761060275566,0.01299284,113150.0,113140.0,0.93809455]
[1761060275779,0.01299284,113150.0,113140.0,1.03055252]
[1761060276134,0.01299284,113150.0,113140.0,1.37055252]
[1761060276335,0.01299284,113150.0,113140.0,1.4067348]
[1761060276519,0.05040388,113170.0,113150.0,1.10732041]
[1761060276727,0.05040388,113170.0,113150.0,1.23099878]
[1761060278215,0.05040388,113170.0,113150.0,1.34795878]
[1761060278419,0.05040388,113170.0,113150.0,1.37437237]
[1761060278641,0.0519453,113160.0,113150.0,1.29895274]
[1761060278845,0.0519453,113160.0,113150.0,1.41591274]
[1761060279205,0.0519453,113160.0,113150.0,1.41691274]
[1761060279723,0.0519453,113160.0,113150.0,1.23299878]
[1761060279921,0.0519453,113160.0,113150.0,1.34995878]
[1761060281643,0.0519453,113160.0,113150.0,1.85774893]
[1761060282317,0.0519453,113160.0,113150.0,1.81156666]
[1761060282534,0.0519453,113160.0,113150.0,0.76042851]
[1761060282737,0.0519453,113160.0,113150.0,0.5536495]
[1761060282954,0.22868619,113160.0,113150.0,1.21499113]
[1761060283198,0.6585052,113160.0,113150.0,0.502]
[1761060283406,1.20288683,113160.0,113150.0,0.502]
[1761060283611,0.6585052,113160.0,113150.0,0.502]
[1761060283817,1.20288683,113160.0,113150.0,0.502]
[1761060284022,1.32888812,113160.0,113150.0,0.501]
[1761060284240,0.79450648,113160.0,113150.0,0.501]
[1761060284664,0.91142648,113160.0,113150.0,0.501]
[1761060284868,1.45580811,113160.0,113150.0,0.501]
[1761060285026,1.45580811,113160.0,113150.0,0.5]
[1761060285461,1.44580812,113160.0,113150.0,0.5]
[1761060285816,1.33180682,113160.0,113150.0,0.5]
[1761060286021,1.33280682,113160.0,113150.0,0.5]
[1761060286600,1.21588682,113160.0,113150.0,0.5]
[1761060286813,1.35179904,113160.0,113150.0,0.5]
[1761060287056,0.80741741,113160.0,113150.0,0.5]
[1761060287260,1.42262583,113160.0,113150.0,0.09817273]
[1761060287417,0.8782442,113160.0,113150.0,0.09817273]
[1761060287600,1.42262583,113160.0,113150.0,0.09817273]
[1761060287800,1.33280682,113160.0,113150.0,0.09817273]
[1761060288011,0.7784252,113160.0,113150.0,0.09817273]
[1761060288222,1.35180164,113160.0,113150.0,0.09817273]
[1761060288828,0.80742001,113160.0,113150.0,0.09817273]
[1761060289021,1.35180164,113160.0,113150.0,0.09817273]
[1761060289215,1.44162065,113160.0,113150.0,0.09817273]
[1761060289473,0.79742002,113160.0,113150.0,0.09817273]
[1761060289693,1.35180164,113160.0,113150.0,0.09817273]
[1761060289905,1.38798392,113160.0,113150.0,1e-08]
[1761060290716,4.38798392,113160.0,113150.0,1e-08]
[1761060290942,4.47780293,113160.0,113150.0,1e-08]
[1761060291486,4.02088293,113160.0,113150.0,1e-08]
[1761060291689,1.04698392,113160.0,113150.0,1e-08]
[1761060291905,1.26806392,113160.0,113150.0,1e-08]
[1761060292083,1.38898392,113160.0,113150.0,1e-08]
[1761060292281,1.27206392,113160.0,113150.0,1e-08]
[1761060292482,1.36188293,113160.0,113150.0,1e-08]
[1761060292685,1.38902392,113160.0,113150.0,1e-08]
[1761060293066,1.37902392,113160.0,113150.0,1e-08]
[1761060293462,1.25206393,113160.0,113150.0,1e-08]
[1761060293609,1.36902393,113160.0,113150.0,1e-08]
[1761060293815,0.6525052,113160.0,113150.0,1e-08]
[1761060294192,0.7694252,113160.0,113150.0,1e-08]
[1761060294396,0.85924421,113160.0,113150.0,1e-08]
[1761060294622,1.39962584,113160.0,113150.0,1e-08]
[1761060295012,1.44780811,113160.0,113150.0,1e-08]
[1761060295247,1.46681829,113160.0,113150.0,1e-08]
[1761060296204,1.46481829,113160.0,113150.0,1e-08]
[1761060296411,4.46681829,113160.0,113150.0,1e-08]
[1761060296609,0.34999999,113150.0,113120.0,1e-08]
[1761060296823,0.17686593,113080.0,113070.0,0.00999999]
[1761060297158,0.18570922,113080.0,113070.0,0.00048557]
[1761060297570,0.1768641,113090.0,113070.0,0.00048557]
[1761060297571,0.19566195,113110.0,113090.0,0.17684393]
[1761060297763,0.30096272,113110.0,113090.0,0.73122555]
[1761060297973,0.17683465,113100.0,113090.0,0.00999999]
[1761060298183,0.17685029,113090.0,113080.0,0.11692]
[1761060298413,0.17686593,113080.0,113070.0,0.5448672]
[1761060298610,0.17685029,113090.0,113070.0,0.17736638]
[1761060298841,0.17686593,113080.0,113070.0,0.5448672]
[1761060299223,0.17686593,113080.0,113070.0,0.00048557]
[1761060300248,0.26667058,113090.0,113070.0,0.5448672]
[1761060300449,0.26667058,113090.0,113070.0,0.73174876]
[1761060300450,0.22467058,113090.0,113070.0,0.73174876]
[1761060300676,0.17683465,113100.0,113070.0,0.74059283]
[1761060300854,0.51683607,113100.0,113080.0,0.84816755]
[1761060301068,0.18567245,113130.0,113100.0,0.17683437]
[1761060301274,0.21343204,113110.0,113100.0,0.12691999]
[1761060301487,0.17681902,113110.0,113100.0,0.11692]
[1761060301690,0.17681902,113110.0,113090.0,0.00999999]
[1761060301907,0.17683465,113100.0,113080.0,0.30378103]
[1761060302231,0.60663934,113110.0,113090.0,0.17685029]
[1761060302437,0.64346818,113110.0,113090.0,0.72123192]
[1761060302843,0.64346818,113110.0,113090.0,0.54438163]
[1761060303053,0.17683541,113100.0,113080.0,0.85700595]
[1761060303488,0.37782884,113110.0,113090.0,0.17685029]
[1761060303704,0.554648,113110.0,113090.0,0.73123191]
[1761060303909,0.553648,113110.0,113090.0,0.73123191]
[1761060304110,0.55364874,113110.0,113090.0,0.73123191]
[1761060304321,0.55364786,113110.0,113090.0,0.73123191]
[1761060304815,0.17683465,113100.0,113090.0,0.00999999]
[1761060305029,0.17686593,113080.0,113070.0,0.00048557]
[1761060305473,0.92798657,113080.0,113070.0,0.00048557]
[1761060305689,1.26798657,113080.0,113070.0,0.00048557]
[1761060305907,0.60668494,113080.0,113070.0,0.00048557]
[1761060306154,0.34,113080.0,113070.0,0.00048557]
[1761060306360,0.51686593,113080.0,113070.0,0.00048557]
[1761060306568,0.17686593,113080.0,113070.0,0.00048557]
[1761060306778,0.22249167,113110.0,113070.0,0.17736437]
[1761060306991,0.17685033,113090.0,113070.0,0.04860363]
[1761060307201,0.17686593,113080.0,113070.0,0.00048557]
[1761060307410,0.51686593,113080.0,113070.0,0.00048557]
[1761060307619,1.15106657,113080.0,113070.0,0.00048557]
[1761060307829,1.15206657,113080.0,113070.0,0.00048557]
[1761060308044,0.69750395,113080.0,113070.0,0.00048557]
[1761060308256,0.69650395,113080.0,113070.0,0.00048557]
[1761060308710,0.18579623,113040.0,113030.0,0.00999999]
[1761060308916,0.0088472,113030.0,113020.0,0.00999999]
[1761060309129,0.17694533,113030.0,113020.0,0.00048558]
[1761060309343,0.39255648,113040.0,113020.0,0.00048558]
[1761060309565,0.30271111,113070.0,113040.0,0.17692852]
[1761060309774,0.08981901,113060.0,113050.0,0.17691287]
[1761060309999,0.17688204,113070.0,113050.0,0.17691287]
[1761060310000,0.08981901,113070.0,113050.0,0.17691287]
[1761060310212,0.18778763,113080.0,113050.0,0.18691286]
[1761060310213,0.52778763,113080.0,113050.0,0.18691286]
[1761060310428,0.08981901,113070.0,113040.0,0.85607939]
[1761060310657,0.26670168,113070.0,113050.0,0.00999999]
[1761060310868,0.17689722,113060.0,113050.0,0.04116977]
[1761060311073,0.17689722,113060.0,113050.0,0.00999999]
[1761060311481,0.60670236,113070.0,113050.0,0.18691266]
[1761060311685,0.51688335,113070.0,113050.0,0.73129429]
[1761060312021,0.17689722,113060.0,113050.0,0.55438162]
[1761060312429,0.17689722,113060.0,113050.0,0.00999999]
[1761060313303,0.17689722,113060.0,113040.0,0.86493456]
[1761060313543,0.17691287,113050.0,113040.0,0.67915982]
[1761060313740,0.17689722,113060.0,113040.0,0.85608834]
[1761060313966,0.52572742,113070.0,113040.0,0.85608834]
[1761060314169,0.17686617,113080.0,113060.0,0.00999999]
[1761060314353,0.60668518,113080.0,113060.0,0.00999999]
[1761060314534,0.60668518,113080.0,113060.0,0.12695999]
[1761060314732,0.60668518,113080.0,113060.0,0.30385626]
[1761060314935,0.1857492,113090.0,113070.0,0.54438163]
[1761060315170,0.22105295,113110.0,113080.0,0.66134163]
[1761060315489,0.31087196,113110.0,113090.0,0.17685029]
[1761060315658,0.03530773,113110.0,113100.0,0.72121628]
[1761060315851,0.30194591,113110.0,113090.0,0.00999999]
[1761060316059,0.26665366,113100.0,113080.0,0.30431081]
[1761060316258,0.26665366,113100.0,113080.0,0.84869244]
[1761060316473,0.22237207,113110.0,113090.0,0.17685029]
[1761060316639,0.03671195,113110.0,113090.0,0.55438162]
[1761060316839,0.17683465,113100.0,113090.0,0.00999999]
[1761060317043,0.27550819,113110.0,113080.0,0.12744557]
[1761060317345,0.27550819,113110.0,113090.0,0.54438163]
[1761060317346,0.606639,113110.0,113090.0,0.54438163]
[1761060317544,0.606639,113110.0,113090.0,0.17685029]
[1761060317756,0.17683465,113100.0,113090.0,0.00999999]
[1761060318585,0.17683465,113100.0,113090.0,0.18685028]
[1761060318816,0.64264218,113110.0,113090.0,0.23496448]
[1761060318817,0.12582219,113110.0,113090.0,0.23496448]
[1761060319020,0.03600318,113110.0,113100.0,0.17683465]
[1761060319221,0.18598605,113120.0,113090.0,0.77934611]
[1761060319432,0.27580506,113120.0,113100.0,0.11696]
[1761060319640,0.17681902,113110.0,113100.0,0.11696]
[1761060319843,0.27580506,113120.0,113100.0,0.2120271]
[1761060320111,0.2669532,113120.0,113100.0,0.22202709]
[1761060320289,0.17713443,113120.0,113100.0,0.22202709]
[1761060320710,0.17681902,113110.0,113100.0,0.22202488]
[1761060320884,0.17713443,113120.0,113100.0,0.18683243]
[1761060321715,0.00033024,113120.0,113110.0,0.17681902]
[1761060321886,0.00033024,113120.0,113110.0,0.30377901]
[1761060322346,0.17713363,113120.0,113110.0,0.30377901]
[1761060322538,0.17713363,113120.0,113110.0,0.12695999]
[1761060322744,0.00033024,113120.0,113110.0,0.33415825]
[1761060323489,0.17713363,113120.0,113110.0,0.15733923]
[1761060323692,0.17713363,113120.0,113110.0,0.12695999]
[1761060326998,0.00033024,113120.0,113110.0,0.84816064]
[1761060327206,0.17713363,113120.0,113110.0,0.12695999]
[1761060327858,0.34033024,113120.0,113100.0,0.12691999]
[1761060328061,0.00033024,113120.0,113110.0,0.00999999]
[1761060328665,0.17681902,113110.0,113100.0,0.12691999]
[1761060328789,0.30203329,113110.0,113100.0,0.00999999]
[1761060329028,0.30203329,113110.0,113080.0,0.00048558]
[1761060329029,0.51684861,113100.0,113090.0,0.11692]
[1761060329297,0.60666762,113100.0,113090.0,0.11692]
[1761060329592,0.17685029,113090.0,113080.0,0.12740557]
[1761060329845,0.17685029,113090.0,113080.0,0.6717872]
[1761060330102,0.18565997,113110.0,113090.0,0.17685029]
[1761060330361,0.17685029,113090.0,113080.0,0.84865237]
[1761060330628,0.17683487,113100.0,113080.0,0.01048557]
[1761060330896,0.17685029,113090.0,113080.0,0.01048557]
[1761060331089,0.17685029,113090.0,113080.0,0.1873515]
[1761060331551,0.17685029,113090.0,113080.0,0.01148557]
[1761060331756,0.65101972,113090.0,113080.0,0.00048558]
[1761060331965,0.76793972,113090.0,113080.0,0.00048558]
[1761060332773,0.7235893,113090.0,113080.0,0.00048558]
[1761060333389,0.7135893,113090.0,113080.0,0.00048558]
[1761060333616,1.29415321,113090.0,113080.0,0.00048558]
[1761060333833,0.17691287,113050.0,113040.0,0.0178426]
[1761060334046,0.26673188,113050.0,113040.0,0.00048627]
[1761060334250,0.17691287,113050.0,113040.0,0.29433479]
[1761060334455,0.21259137,113050.0,113040.0,0.11740627]